[Event "Asian Amateur-ch Women 2022"]
[Site "Muscat"]
[Date "2022.10.04"]
[Round "8.9"]
[White "Suchitraa Viswanathan"]
[Black "Fatima, Saif Al-Ali"]
[Result "0-1"]
[ECO "B14"]
[WhiteElo "1041"]
[BlackElo "1595"]
[Annotator "NA RC COMBH"]
[PlyCount "118"]
[EventDate "2022.09.29"]
[EventType "swiss"]
[EventCountry "OMN"]
[SourceTitle "playchess.com"]
[Source "ChessBase"]
[SourceQuality "1"]
[TimeControl "5400+30"]

1. e4 {[%emt 0:00:55]} c6 {[%emt 0:00:13]} 2. d4 {[%emt 0:00:43]} d5 {[%emt 0:00:35]} 3. exd5 {[%emt 0:01:29]} cxd5 {[%emt 0:00:33]} 4. c4 {[%emt 0:01:36]} Nf6 {[%emt 0:01:11]} 5. Nc3 {[%emt 0:02:47]} e6 {[%emt 0:00:52]} 6. Nf3 {[%emt 0:02:19]} Bb4 {[%emt 0:00:14]} 7. Bg5 {[%emt 0:04:04]} dxc4 {[%emt 0:09:06]} 8. Bxf6 {[%emt 0:09:55]} Qxf6 {[%emt 0:00:50]} 9. Bxc4 {[%emt 0:05:48]} O-O {[%emt 0:01:11]} 10. O-O {[%emt 0:00:34]} Nc6 {[%emt 0:00:56]} 11. Ne4 {[%emt 0:03:15]} Qd8 {[%emt 0:02:48]} 12. Qb3 {[%emt 0:03:47]} Be7 {[%emt 0:06:26]} 13. Qe3 {[%emt 0:03:41]} a6 {[%emt 0:05:25]} 14. Rad1 {[%emt 0:01:59]} b5 {[%emt 0:01:45]} 15. Bb3 {[%emt 0:02:06]} Qb6 {[%emt 0:03:12]} 16. Qf4 {[%emt 0:01:51]} Bb7 {[%emt 0:03:27]} 17. Ng3 {[%emt 0:07:36]} Rad8 {[%emt 0:03:53]} 18. Qg4 {[%emt 0:01:39]} g6 {[%emt 0:09:30]} 19. h4 {[%emt 0:06:06]} Bf6 {[%emt 0:03:20]} 20. d5 {[%emt 0:04:05]} exd5 {[%emt 0:01:50]} 21. h5 {[%emt 0:04:46]} Ne5 {[%emt 0:08:33]} 22. Nxe5 {[%emt 0:03:01]} Bxe5 {[%emt 0:00:19]} 23. Rd2 {[%emt 0:02:06]} Qf6 {[%emt 0:03:10]} 24. f4 {[%emt 0:02:35]} Bxb2 {[%emt 0:01:12]} 25. Rfd1 {[%emt 0:01:16]} Bc3 {[%emt 0:05:03]} 26. Rd3 {[%emt 0:01:17]} d4 {[%emt 0:00:15]} 27. h6 {[%emt 0:00:41]} Qc6 {[%emt 0:02:45]} 28. Nf5 {[%emt 0:00:38]} Rfe8 {[%emt 0:01:19]} 29. Nh4 {[%emt 0:00:49]} a5 {[%emt 0:00:36]} 30. a3 {[%emt 0:00:47]} b4 {[%emt 0:00:37]} 31. axb4 {[%emt 0:00:21]} axb4 {[%emt 0:00:09]} 32. Rg3 {[%emt 0:00:25]} Ba6 {[%emt 0:01:33]} 33. f5 {[%emt 0:00:49]} Qe4 {[%emt 0:07:24]} 34. Bxf7+ {[%emt 0:03:45]} Kxf7 {[%emt 0:00:18]} 35. fxg6+ {[%emt 0:00:07]} hxg6 {[%emt 0:00:44]} 36. Rf3+ {[%emt 0:00:33]} Kg8 {[%emt 0:00:46]} 37. Rf4 {[%emt 0:00:29]} Qe6 {[%emt 0:02:19]} 38. Qg5 {[%emt 0:02:04]} Rd5 {[%emt 0:00:10]} 39. Qg3 {[%emt 0:00:04]} Qe3+ {[%emt 0:00:09]} 40. Qxe3 {[%emt 0:00:24]} Rxe3 {[%emt 0:00:10]} 41. Nxg6 {[%emt 0:00:37]} b3 {[%emt 0:01:48]} 42. Rh4 {[%emt 0:00:11]} Rd7 {[%emt 0:00:39]} 43. Rf4 {[%emt 0:00:26]} Rf7 {[%emt 0:00:34]} 44. Rxf7 {[%emt 0:00:16]} Kxf7 {[%emt 0:00:32]} 45. h7 {[%emt 0:00:04]} d3 {[%emt 0:00:13]} 46. h8=Q {[%emt 0:00:14]} Bxh8 {[%emt 0:00:04]} 47. Nxh8+ {[%emt 0:00:08]} Kg7 {[%emt 0:00:02]} 48. Kf2 {[%emt 0:00:07]} Re2+ {[%emt 0:00:10]} 49. Kf3 {[%emt 0:00:24]} Kxh8 {[%emt 0:00:05]} 50. g4 {[%emt 0:00:16]} b2 {[%emt 0:00:15]} 51. g5 {[%emt 0:00:09]} Rc2 {[%emt 0:00:13]} 52. g6 {[%emt 0:00:05]} Rc1 {[%emt 0:00:08]} 53. Rxc1 {[%emt 0:00:05]} bxc1=Q {[%emt 0:00:06]} 54. g7+ {[%emt 0:00:11]} Kxg7 {[%emt 0:00:04]} 55. Ke4 {[%emt 0:00:04]} Qc4+ {[%emt 0:00:14]} 56. Ke3 {[%emt 0:00:05]} Kf6 {[%emt 0:00:17]} 57. Kd2 {[%emt 0:00:07]} Ke5 {[%emt 0:00:12]} 58. Kd1 {[%emt 0:00:09]} Qc2+ {[%emt 0:00:05]} 59. Ke1 {[%emt 0:00:04]} Qe2# {[%emt 0:00:06]} 0-1

[Event "Asian Amateur-ch Women 2022"]
[Site "Muscat"]
[Date "2022.10.05"]
[Round "9.1"]
[White "Amulya Guruprasad"]
[Black "Nadernia, Niki"]
[Result "0-1"]
[ECO "A46"]
[WhiteElo "1278"]
[BlackElo "1769"]
[Annotator "NA RC COMBH"]
[PlyCount "100"]
[EventDate "2022.09.29"]
[EventType "swiss"]
[EventCountry "OMN"]
[SourceTitle "playchess.com"]
[Source "ChessBase"]
[SourceQuality "1"]
[TimeControl "5400+30"]

1. d4 {[%emt 0:00:01]} Nf6 {[%emt 0:00:06]} 2. Nf3 {[%emt 0:00:07]} e6 {[%emt 0:00:06]} 3. Bf4 {[%emt 0:00:12]} c5 {[%emt 0:00:07]} 4. e3 {[%emt 0:00:05]} cxd4 {[%emt 0:00:32]} 5. exd4 {[%emt 0:00:02]} d6 {[%emt 0:00:09]} 6. Bd3 {[%emt 0:02:15]} Be7 {[%emt 0:00:06]} 7. h3 {[%emt 0:00:10]} Nbd7 {[%emt 0:00:27]} 8. c3 {[%emt 0:00:43]} O-O {[%emt 0:02:42]} 9. Qc2 {[%emt 0:00:52]} Re8 {[%emt 0:02:01]} 10. O-O {[%emt 0:00:32]} b6 {[%emt 0:00:46]} 11. Nbd2 {[%emt 0:00:09]} Bb7 {[%emt 0:00:56]} 12. Rae1 {[%emt 0:34:00]} Nf8 {[%emt 0:03:15]} 13. Ng5 {[%emt 0:08:40]} Rc8 {[%emt 0:11:11]} 14. Qb1 {[%emt 0:07:06]} h6 {[%emt 1:15:06]} 15. Nge4 {[%emt 0:03:26]} Nd5 {[%emt 0:00:00]} 16. Bg3 {[%emt 0:00:05]} f5 {[%emt 0:00:00]} 17. Bb5 {[%emt 0:00:28]} fxe4 {[%emt 0:00:00]} 18. Bxe8 {[%emt 0:00:03]} Qxe8 {[%emt 0:00:00]} 19. Rxe4 {[%emt 0:00:03]} Qg6 {[%emt 0:00:00]} 20. Qe1 {[%emt 0:01:00]} Nf6 {[%emt 0:00:00]} 21. Rf4 {[%emt 0:01:34]} Qf7 {[%emt 0:00:00]} 22. Ne4 {[%emt 0:06:12]} Bxe4 {[%emt 0:00:00]} 23. Rxf6 {[%emt 0:00:01]} Qxf6 {[%emt 0:00:00]} 24. Qxe4 {[%emt 0:00:02]} Rd8 {[%emt 0:00:00]} 25. Re1 {[%emt 0:01:15]} d5 {[%emt 0:00:00]} 26. Qg4 {[%emt 0:05:07]} Qg5 {[%emt 0:00:00]} 27. Qe2 {[%emt 0:00:23]} Bd6 {[%emt 0:00:00]} 28. h4 {[%emt 0:01:40]} Qf6 {[%emt 0:00:00]} 29. Bxd6 {[%emt 0:01:45]} Rxd6 {[%emt 0:00:00]} 30. Qa6 {[%emt 0:01:49]} Rd7 {[%emt 0:00:00]} 31. g3 {[%emt 0:00:07]} Rf7 {[%emt 0:00:00]} 32. Qe2 {[%emt 0:00:51]} Qf5 {[%emt 0:00:00]} 33. Kg2 {[%emt 0:00:16]} Re7 {[%emt 0:00:00]} 34. f3 {[%emt 0:01:32]} Ng6 {[%emt 0:00:00]} 35. Qd2 {[%emt 0:01:00]} e5 {[%emt 0:00:00]} 36. dxe5 {[%emt 0:00:52]} Rxe5 {[%emt 0:00:00]} 37. Rxe5 {[%emt 0:04:13]} Qxe5 {[%emt 0:00:00]} 38. Kf2 {[%emt 0:00:02]} Ne7 {[%emt 0:00:00]} 39. Qd3 {[%emt 0:00:35]} Nf5 {[%emt 0:00:00]} 40. f4 {[%emt 0:00:53]} Qe6 {[%emt 0:00:00]} 41. b3 {[%emt 0:00:23]} Nd6 {[%emt 0:00:00]} 42. Kf3 {[%emt 0:02:04]} Qe4+ {[%emt 0:00:00]} 43. Qxe4 {[%emt 0:00:03]} dxe4+ {[%emt 0:00:00]} 44. Ke3 {[%emt 0:00:16]} Kf7 {[%emt 0:00:00]} 45. g4 {[%emt 0:00:06]} Ke6 {[%emt 0:00:00]} 46. c4 {[%emt 0:00:10]} h5 {[%emt 0:00:00]} 47. gxh5 {[%emt 0:05:01]} Kf5 {[%emt 0:00:00]} 48. a4 {[%emt 0:04:59]} a5 {[%emt 0:00:00]} 49. h6 {[%emt 0:01:10]} gxh6 {[%emt 0:00:00]} 50. h5 {[%emt 0:00:20]} Nb7 {[%emt 0:00:00]} 0-1

[Event "Asian Amateur-ch Women 2022"]
[Site "Muscat"]
[Date "2022.10.05"]
[Round "9.2"]
[White "Rouda Essa, Alserkal"]
[Black "Sawan, Eman"]
[Result "1-0"]
[ECO "B87"]
[WhiteElo "1893"]
[BlackElo "1840"]
[Annotator "NA RC COMBH"]
[PlyCount "49"]
[EventDate "2022.09.29"]
[EventType "swiss"]
[EventCountry "OMN"]
[SourceTitle "playchess.com"]
[Source "ChessBase"]
[SourceQuality "1"]
[TimeControl "5400+30"]

{[%evp 21,49,102,78,91,545,328,354,243,32767,629,640,718,667,708,629,751,827,445,715,525,791,872,2347,1311,1710,1579,29986,29987,29996,29997]} 1. e4 {[%emt 0:00:02]} c5 {[%emt 0:00:04]} 2. Nf3 {[%emt 0:00:03]} d6 {[%emt 0:00:06]} 3. d4 {[%emt 0:00:03]} cxd4 {[%emt 0:00:05]} 4. Nxd4 {[%emt 0:00:04]} Nf6 {[%emt 0:00:09]} 5. Nc3 {[%emt 0:00:04]} a6 {[%emt 0:00:05]} 6. Bc4 {[%emt 0:00:06]} e6 {[%emt 0:00:20]} 7. Bb3 {[%emt 0:00:16]} b5 {[%emt 0:00:30]} 8. Bg5 {[%emt 0:00:06]} Be7 {[%emt 0:00:20]} 9. Qf3 {[%emt 0:00:22]} Qc7 {[%emt 0:01:36]} 10. O-O-O {[%emt 0:00:10]} O-O {[%emt 0:05:51]} 11. e5 $1 {[%emt 0:13:15]} Bb7 {[%emt 0:02:55]} 12. exf6 {[%emt 0:00:10]} gxf6 $2 {[%emt 0:14:31]} (12... Bxf3 $16 {is tougher.} 13. fxe7 Re8 14. gxf3 (14. Nxf3 b4 $11) 14... h6) 13. Qg4 {[%emt 0:32:55]} fxg5 {[%emt 0:03:35]} 14. h4 {[%emt 0:01:59]} d5 {[%emt 0:28:55]} 15. hxg5 {[%emt 0:00:54]} Qe5 {[%emt 0:00:16]} 16. f4 {[%emt 0:00:39]} Qg7 {[%emt 0:00:42] [#]} 17. Nxd5 $1 {[%emt 0:10:49]} Bxd5 {[%emt 0:02:42]} 18. Bxd5 {[%emt 0:00:15]} Ra7 {[%emt 0:00:42]} 19. Bb3 {[%emt 0:07:33]} Rd8 {[%emt 0:02:17]} (19... Bf6 $142 20. Nxe6 Bxb2+ 21. Kb1 fxe6) 20. c3 {[%emt 0:06:56]} b4 {[%emt 0:08:02]} 21. Bc2 {[%emt 0:01:27]} bxc3 {[%emt 0:01:54]} 22. Rxh7 {[%emt 0:00:39]} ({Not} 22. Bxh7+ Kf8 23. bxc3 Nc6 $14) 22... cxb2+ {[%emt 0:00:18]} 23. Kb1 {[%emt 0:00:02]} Qxh7 {[%emt 0:02:03]} 24. Bxh7+ {[%emt 0:00:02]} Kxh7 {[%emt 0:00:07]} 25. Qh5+ {[%emt 0:00:11]} 1-0

[Event "Asian Amateur-ch Women 2022"]
[Site "Muscat"]
[Date "2022.10.05"]
[Round "9.3"]
[White "Al Mansouri, Moza"]
[Black "Wijesuriya, G P Y"]
[Result "0-1"]
[ECO "C79"]
[WhiteElo "1610"]
[BlackElo "1564"]
[Annotator "NA RC COMBH"]
[PlyCount "102"]
[EventDate "2022.09.29"]
[EventType "swiss"]
[EventCountry "OMN"]
[SourceTitle "playchess.com"]
[Source "ChessBase"]
[SourceQuality "1"]
[TimeControl "5400+30"]

1. e4 {[%emt 0:00:07]} e5 {[%emt 0:00:24]} 2. Nf3 {[%emt 0:00:09]} Nc6 {[%emt 0:00:06]} 3. Bb5 {[%emt 0:00:08]} a6 {[%emt 0:00:06]} 4. Ba4 {[%emt 0:00:03]} d6 {[%emt 0:00:05]} 5. d4 {[%emt 0:04:55]} Bd7 {[%emt 0:00:28]} 6. c3 {[%emt 0:02:09]} g6 {[%emt 0:00:05]} 7. O-O {[%emt 0:04:24]} Bg7 {[%emt 0:00:12]} 8. Re1 {[%emt 0:03:41]} Nf6 {[%emt 0:09:42]} 9. Nbd2 {[%emt 0:06:19]} O-O {[%emt 0:00:11]} 10. d5 {[%emt 0:04:19]} Ne7 {[%emt 0:00:12]} 11. Bc2 {[%emt 0:03:06]} Nh5 {[%emt 0:00:11]} 12. Nf1 {[%emt 0:01:00]} f5 {[%emt 0:00:24]} 13. Ng3 {[%emt 0:02:58]} f4 {[%emt 0:07:59]} 14. Nxh5 {[%emt 0:00:31]} gxh5 {[%emt 0:00:02]} 15. Bd3 {[%emt 0:06:37]} Ng6 {[%emt 0:03:02]} 16. Bf1 {[%emt 0:04:24]} h6 {[%emt 0:02:32]} 17. h3 {[%emt 0:04:14]} Kh7 {[%emt 0:00:25]} 18. g3 {[%emt 0:07:45]} Qf6 {[%emt 0:03:47]} 19. Bg2 {[%emt 0:01:55]} Rf7 {[%emt 0:03:56]} 20. Rf1 {[%emt 0:03:28]} Raf8 {[%emt 0:00:46]} 21. b3 {[%emt 0:02:36]} Qd8 {[%emt 0:00:20]} 22. Nh2 {[%emt 0:02:24]} Qc8 {[%emt 0:01:14]} 23. Qxh5 {[%emt 0:01:26]} c6 {[%emt 0:03:44]} 24. Nf3 {[%emt 0:04:48]} Rf6 {[%emt 0:03:53]} 25. g4 {[%emt 0:03:06]} Be8 {[%emt 0:02:40]} 26. g5 {[%emt 0:04:02]} Nh8 {[%emt 0:02:43]} 27. Qg4 {[%emt 0:03:38]} Bd7 {[%emt 0:03:46]} 28. Qh4 {[%emt 0:02:25]} Rg6 {[%emt 0:00:19]} 29. gxh6 {[%emt 0:02:56]} Bf6 {[%emt 0:00:16]} 30. Qh5 {[%emt 0:01:42]} Bxh3 {[%emt 0:00:11]} 31. Ne1 {[%emt 0:02:11]} Rfg8 {[%emt 0:00:50]} 32. Qf3 {[%emt 0:01:32]} Bxg2 {[%emt 0:01:09]} 33. Nxg2 {[%emt 0:00:10]} Qg4 {[%emt 0:00:13]} 34. Qxg4 {[%emt 0:00:32]} Rxg4 {[%emt 0:00:02]} 35. Rd1 {[%emt 0:00:47]} Rxg2+ {[%emt 0:00:09]} 36. Kf1 {[%emt 0:00:04]} Rg1+ {[%emt 0:00:16]} 37. Ke2 {[%emt 0:00:03]} f3+ {[%emt 0:00:06]} 38. Kd2 {[%emt 0:00:15]} Rxd1+ {[%emt 0:00:24]} 39. Kxd1 {[%emt 0:00:04]} Rg1+ {[%emt 0:00:32]} 40. Kc2 {[%emt 0:00:06]} Nf7 {[%emt 0:00:35]} 41. dxc6 {[%emt 0:00:17]} bxc6 {[%emt 0:00:07]} 42. a4 {[%emt 0:00:20]} Bg5 {[%emt 0:00:25]} 43. Bxg5 {[%emt 0:00:49]} Rxa1 {[%emt 0:00:07]} 44. Bc1 {[%emt 0:00:04]} Ra2+ {[%emt 0:00:15]} 45. Bb2 {[%emt 0:00:05]} Rxb2+ {[%emt 0:00:06]} 46. Kxb2 {[%emt 0:00:08]} Kxh6 {[%emt 0:00:15]} 47. b4 {[%emt 0:00:21]} Kg5 {[%emt 0:00:13]} 48. c4 {[%emt 0:00:09]} Kf4 {[%emt 0:00:06]} 49. b5 {[%emt 0:00:14]} cxb5 {[%emt 0:00:12]} 50. cxb5 {[%emt 0:00:09]} axb5 {[%emt 0:00:12]} 51. a5 {[%emt 0:00:25]} Nd8 {[%emt 0:00:04]} 0-1

[Event "Asian Amateur-ch Women 2022"]
[Site "Muscat"]
[Date "2022.10.05"]
[Round "9.4"]
[White "Shybi Binoj"]
[Black "Al-Khelaifi, Salama"]
[Result "0-1"]
[ECO "B13"]
[WhiteElo "1402"]
[BlackElo "1798"]
[Annotator "NA RC COMBH"]
[PlyCount "154"]
[EventDate "2022.09.29"]
[EventType "swiss"]
[EventCountry "OMN"]
[SourceTitle "playchess.com"]
[Source "ChessBase"]
[SourceQuality "1"]
[TimeControl "5400+30"]

1. e4 {[%emt 0:00:07]} c6 {[%emt 0:00:26]} 2. d4 {[%emt 0:00:18]} d5 {[%emt 0:01:39]} 3. exd5 {[%emt 0:00:43]} cxd5 {[%emt 0:00:04]} 4. Nc3 {[%emt 0:00:14]} Nf6 {[%emt 0:00:36]} 5. h3 {[%emt 0:00:26]} Bf5 {[%emt 0:00:43]} 6. Bf4 {[%emt 0:00:30]} a6 {[%emt 0:00:47]} 7. Bd3 {[%emt 0:00:28]} Bg6 {[%emt 0:01:36]} 8. Nf3 {[%emt 0:00:17]} e6 {[%emt 0:00:20]} 9. O-O {[%emt 0:00:29]} Bd6 {[%emt 0:00:56]} 10. Bg3 {[%emt 0:01:33]} O-O {[%emt 0:03:04]} 11. Bxg6 {[%emt 0:01:15]} hxg6 {[%emt 0:00:03]} 12. Ne5 {[%emt 0:00:10]} Nh5 {[%emt 0:02:03]} 13. Bh2 {[%emt 0:00:40]} Qc7 {[%emt 0:05:05]} 14. Qg4 {[%emt 0:05:04]} Nc6 {[%emt 0:01:33]} 15. Rfe1 {[%emt 0:02:12]} Nf6 {[%emt 0:03:49]} 16. Qd1 {[%emt 0:01:47]} Rfd8 {[%emt 0:02:08]} 17. a3 {[%emt 0:03:30]} Rac8 {[%emt 0:01:38]} 18. Kh1 {[%emt 0:02:59]} Qb6 {[%emt 0:03:53]} 19. Nxc6 {[%emt 0:01:13]} Rxc6 {[%emt 0:01:10]} 20. Bxd6 {[%emt 0:01:50]} Rdxd6 {[%emt 0:00:12]} 21. Rb1 {[%emt 0:02:03]} Rc4 {[%emt 0:02:55]} 22. Ne2 {[%emt 0:01:31]} Rdc6 {[%emt 0:09:21]} 23. c3 {[%emt 0:02:24]} Rc8 {[%emt 0:00:15]} 24. f3 {[%emt 0:00:56]} Qd6 {[%emt 0:01:50]} 25. Qd2 {[%emt 0:03:39]} Nh5 {[%emt 0:01:42]} 26. Qg5 {[%emt 0:01:09]} b5 {[%emt 0:01:54]} 27. Nc1 {[%emt 0:02:08]} Nf6 {[%emt 0:13:42]} 28. Nd3 {[%emt 0:01:48]} Nd7 {[%emt 0:01:14]} 29. h4 {[%emt 0:02:19]} a5 {[%emt 0:01:01]} 30. h5 {[%emt 0:05:13]} gxh5 {[%emt 0:00:43]} 31. Qxh5 {[%emt 0:00:24]} Qg3 {[%emt 0:00:48]} 32. Ne5 {[%emt 0:07:43]} Nxe5 {[%emt 0:07:05]} 33. Rxe5 {[%emt 0:00:21]} b4 {[%emt 0:00:10]} 34. Rg5 {[%emt 0:00:34]} Qd6 {[%emt 0:01:20]} 35. Qh4 {[%emt 0:06:19]} g6 {[%emt 0:00:34]} 36. Rg3 {[%emt 0:00:46]} Qf8 {[%emt 0:03:48]} 37. cxb4 {[%emt 0:01:09]} axb4 {[%emt 0:00:15]} 38. Re1 {[%emt 0:00:24]} Qg7 {[%emt 0:00:40]} 39. Rg4 {[%emt 0:02:11]} bxa3 {[%emt 0:00:33]} 40. bxa3 {[%emt 0:00:13]} Ra4 {[%emt 0:00:07]} 41. Ra1 {[%emt 0:01:07]} Qh7 {[%emt 0:00:16]} 42. Qxh7+ {[%emt 0:01:06]} Kxh7 {[%emt 0:00:03]} 43. Kg1 {[%emt 0:00:23]} Rc3 {[%emt 0:00:05]} 44. Rb1 {[%emt 0:01:37]} Rcxa3 {[%emt 0:00:15]} 45. Rb7 {[%emt 0:01:04]} Ra7 {[%emt 0:00:02]} 46. Rb8 {[%emt 0:00:10]} R3a4 {[%emt 0:01:49]} 47. Rh4+ {[%emt 0:00:31]} Kg7 {[%emt 0:00:02]} 48. Rbh8 {[%emt 0:01:07]} Rc4 {[%emt 0:01:54]} 49. Kf2 {[%emt 0:03:13]} Ra2+ {[%emt 0:00:52]} 50. Kg3 {[%emt 0:00:26]} Raa4 {[%emt 0:01:57]} 51. R8h7+ {[%emt 0:00:30]} Kg8 {[%emt 0:08:47]} 52. Rh8+ {[%emt 0:00:11]} Kg7 {[%emt 0:00:09]} 53. R8h7+ {[%emt 0:00:05]} Kf8 {[%emt 0:01:57]} 54. Rf4 {[%emt 0:00:16]} Ra7 {[%emt 0:00:15]} 55. Kg4 {[%emt 0:02:17]} Kg8 {[%emt 0:01:44]} 56. Rh4 {[%emt 0:01:30]} Ra2 {[%emt 0:03:13]} 57. g3 {[%emt 0:03:47]} Rg2 {[%emt 0:05:06]} 58. Kg5 {[%emt 0:04:48]} Rxg3+ {[%emt 0:01:04]} 59. Kf6 {[%emt 0:00:09]} Rc3 {[%emt 0:00:17]} 60. Rhg4 {[%emt 0:01:41]} Rcxf3 {[%emt 0:00:38]} 61. Ke7 {[%emt 0:01:52]} Rxg4 {[%emt 0:02:46]} 62. Rxf3 {[%emt 0:00:18]} Rxd4 {[%emt 0:00:07]} 63. Rxf7 {[%emt 0:00:09]} Re4 {[%emt 0:00:09]} 64. Rf6 {[%emt 0:00:47]} Kg7 {[%emt 0:00:11]} 65. Rf7+ {[%emt 0:00:27]} Kh6 {[%emt 0:00:19]} 66. Rf6 {[%emt 0:00:25]} Kg5 {[%emt 0:00:16]} 67. Rf1 {[%emt 0:00:24]} Rf4 {[%emt 0:00:41]} 68. Rg1+ {[%emt 0:00:21]} Kf5 {[%emt 0:00:01]} 69. Kd6 {[%emt 0:01:01]} g5 {[%emt 0:00:30]} 70. Re1 {[%emt 0:00:12]} Re4 {[%emt 0:00:12]} 71. Rf1+ {[%emt 0:00:11]} Kg6 {[%emt 0:01:20]} 72. Rf8 {[%emt 0:00:18]} g4 {[%emt 0:00:47]} 73. Rg8+ {[%emt 0:25:38]} Kh5 {[%emt 0:07:34]} 74. Rh8+ {[%emt 0:00:00]} Kg5 {[%emt 0:00:00]} 75. Rg8+ {[%emt 0:00:00]} Kf4 {[%emt 0:00:00]} 76. Rf8+ {[%emt 0:00:00]} Kg3 {[%emt 0:00:00]} 77. Rg8 {[%emt 0:00:00]} d4 {[%emt 0:00:00]} 0-1

[Event "Asian Amateur-ch Women 2022"]
[Site "Muscat"]
[Date "2022.10.05"]
[Round "9.5"]
[White "Fatima, Saif Al-Ali"]
[Black "Al Kalbani, Wadima"]
[Result "0-1"]
[ECO "C77"]
[WhiteElo "1595"]
[BlackElo "1554"]
[Annotator "NA RC COMBH"]
[PlyCount "58"]
[EventDate "2022.09.29"]
[EventType "swiss"]
[EventCountry "OMN"]
[SourceTitle "playchess.com"]
[Source "ChessBase"]
[SourceQuality "1"]
[TimeControl "5400+30"]

1. e4 {[%emt 0:00:04]} e5 {[%emt 0:00:06]} 2. Nf3 {[%emt 0:00:24]} Nc6 {[%emt 0:00:05]} 3. Bb5 {[%emt 0:00:30]} a6 {[%emt 0:00:07]} 4. Ba4 {[%emt 0:00:07]} Nf6 {[%emt 0:00:08]} 5. d3 {[%emt 0:00:14]} d6 {[%emt 0:00:05]} 6. c3 {[%emt 0:00:34]} Bd7 {[%emt 0:00:08]} 7. Nbd2 {[%emt 0:00:45]} g6 {[%emt 0:00:14]} 8. d4 {[%emt 0:02:06]} exd4 {[%emt 0:00:07]} 9. cxd4 {[%emt 0:00:20]} Bg7 {[%emt 0:00:45]} 10. O-O {[%emt 0:01:26]} O-O {[%emt 0:00:07]} 11. Re1 {[%emt 0:03:44]} Re8 {[%emt 0:07:53]} 12. a3 {[%emt 0:09:09]} b5 {[%emt 0:06:10]} 13. Bb3 {[%emt 0:01:57]} Na5 {[%emt 0:17:38]} 14. Ba2 {[%emt 0:02:03]} c5 {[%emt 0:00:07]} 15. b4 {[%emt 0:01:38]} cxb4 {[%emt 0:03:42]} 16. axb4 {[%emt 0:00:34]} Nc6 {[%emt 0:00:13]} 17. Qb3 {[%emt 0:02:15]} Qe7 {[%emt 0:00:24]} 18. Bb2 {[%emt 0:04:12]} h6 {[%emt 0:21:01]} 19. e5 {[%emt 0:10:24]} dxe5 {[%emt 0:00:41]} 20. Nxe5 {[%emt 0:00:55]} Nxe5 {[%emt 0:00:39]} 21. Rxe5 {[%emt 0:00:15]} Be6 {[%emt 0:24:26]} 22. Qa3 {[%emt 0:04:08]} Ng4 {[%emt 0:02:37]} 23. Re2 {[%emt 0:02:14]} Qd6 {[%emt 0:01:49]} 24. Nf3 {[%emt 0:00:27]} Bxa2 {[%emt 0:02:37]} 25. Rxe8+ {[%emt 0:00:24]} Rxe8 {[%emt 0:00:10]} 26. Rxa2 {[%emt 0:00:37]} Bxd4 {[%emt 0:02:01]} 27. Bxd4 {[%emt 0:01:40]} Qxd4 {[%emt 0:00:02]} 28. h3 {[%emt 0:00:39]} Qd1+ {[%emt 0:00:10]} 29. Ne1 {[%emt 0:00:11]} Qxe1# {[%emt 0:00:10]} 0-1

[Event "Asian Amateur-ch Women 2022"]
[Site "Muscat"]
[Date "2022.10.05"]
[Round "9.7"]
[White "Aditi Arun"]
[Black "Anoud Eisa Bashkardi"]
[Result "1-0"]
[ECO "A45"]
[WhiteElo "1160"]
[BlackElo "1277"]
[Annotator "NA RC COMBH"]
[PlyCount "83"]
[EventDate "2022.09.29"]
[EventType "swiss"]
[EventCountry "OMN"]
[SourceTitle "playchess.com"]
[Source "ChessBase"]
[SourceQuality "1"]
[TimeControl "5400+30"]

1. d4 {[%emt 0:00:02]} Nf6 {[%emt 0:00:14]} 2. Bf4 {[%emt 0:00:08]} c5 {[%emt 0:00:10]} 3. e3 {[%emt 0:00:23]} Nd5 {[%emt 0:00:25]} 4. Bg3 {[%emt 0:00:42]} Qb6 {[%emt 0:00:36]} 5. b3 {[%emt 1:31:45]} cxd4 {[%emt 0:00:52]} 6. exd4 {[%emt 0:00:00]} g6 {[%emt 0:01:22]} 7. c4 {[%emt 0:00:00]} Nf6 {[%emt 0:02:07]} 8. Nc3 {[%emt 0:00:00]} Bg7 {[%emt 0:02:31]} 9. Bf4 {[%emt 0:00:00]} d6 {[%emt 0:08:00]} 10. Nf3 {[%emt 0:00:00]} Bg4 {[%emt 0:09:18]} 11. Be2 {[%emt 0:00:00]} Nc6 {[%emt 0:06:23]} 12. d5 {[%emt 0:00:00]} Bxf3 {[%emt 0:01:33]} 13. Bxf3 {[%emt 0:00:00]} Nd4 {[%emt 0:02:54]} 14. O-O {[%emt 0:00:00]} Nxf3+ {[%emt 0:00:35]} 15. Qxf3 {[%emt 0:00:00]} O-O {[%emt 0:01:32]} 16. Rac1 {[%emt 0:00:00]} a6 {[%emt 0:03:10]} 17. Rfe1 {[%emt 0:00:00]} Rfe8 {[%emt 0:01:25]} 18. Re2 {[%emt 0:00:00]} Nd7 {[%emt 0:06:30]} 19. Na4 {[%emt 0:00:00]} Qa5 {[%emt 0:01:24]} 20. Bd2 {[%emt 0:00:00]} Qc7 {[%emt 0:01:03]} 21. Qe3 {[%emt 0:00:00]} Rac8 {[%emt 0:03:21]} 22. Bc3 {[%emt 0:00:00]} b5 {[%emt 0:04:09]} 23. Bxg7 {[%emt 0:00:00]} Kxg7 {[%emt 0:00:38]} 24. Nb2 {[%emt 0:00:00]} bxc4 {[%emt 0:00:53]} 25. Rec2 {[%emt 0:00:00]} Qa5 {[%emt 0:00:53]} 26. Qd4+ {[%emt 0:00:00]} Nf6 {[%emt 0:00:56]} 27. Nxc4 {[%emt 0:00:00]} Qxd5 {[%emt 0:02:10]} 28. Qxd5 {[%emt 0:00:00]} Nxd5 {[%emt 0:00:14]} 29. Nxd6 {[%emt 0:00:00]} Rxc2 {[%emt 0:00:35]} 30. Nxe8+ {[%emt 0:00:00]} Kf8 {[%emt 0:00:31]} 31. Rxc2 {[%emt 0:00:00]} Kxe8 {[%emt 0:00:05]} 32. Rc6 {[%emt 0:00:00]} Nb4 {[%emt 0:00:10]} 33. Rb6 {[%emt 0:00:00]} Nxa2 {[%emt 0:00:42]} 34. Rxa6 {[%emt 0:00:00]} Nb4 {[%emt 0:00:15]} 35. Ra4 {[%emt 0:00:00]} Nc6 {[%emt 0:00:18]} 36. b4 {[%emt 0:00:00]} Kd7 {[%emt 0:00:14]} 37. b5 {[%emt 0:00:00]} Nd8 {[%emt 0:00:37]} 38. Ra7+ {[%emt 0:00:00]} Kd6 {[%emt 0:00:20]} 39. f3 {[%emt 0:00:00]} Kc5 {[%emt 0:00:42]} 40. Rxe7 {[%emt 0:00:00]} Kxb5 {[%emt 0:00:07]} 41. Rd7 {[%emt 0:00:00]} Ne6 {[%emt 0:00:07]} 42. Rxf7 {[%emt 0:00:07]} 1-0